[Event "26th OIBM 2023"]
[Site "Gmund am Tegernsee"]
[Date "2023.10.31"]
[Round "4.7"]
[White "Weber, Ulrich"]
[Black "Kraus, Sebastian"]
[Result "0-1"]
[ECO "D36"]
[WhiteElo "2349"]
[BlackElo "1904"]
[Annotator "RC"]
[PlyCount "110"]
[EventDate "2023.10.04"]
[EventType "swiss"]
[EventCountry "GER"]
[SourceTitle "playchess.com"]
[Source "ChessBase"]
[SourceQuality "1"]
[TimeControl "40/5400+30:1800+30"]

1. c4 {[%emt 0:00:02]} e6 {[%emt 0:00:11]} 2. Nc3 {[%emt 0:02:16]} d5 {[%emt 0:00:21]} 3. d4 {[%emt 0:00:11]} Nf6 {[%emt 0:00:48]} 4. cxd5 {[%emt 0:00:13]} exd5 {[%emt 0:00:08]} 5. Bg5 {[%emt 0:00:05]} c6 {[%emt 0:00:18]} 6. e3 {[%emt 0:00:06]} h6 {[%emt 0:00:34]} 7. Bh4 {[%emt 0:01:09]} Be7 {[%emt 0:00:22]} 8. Bd3 {[%emt 0:02:11]} O-O {[%emt 0:00:26]} 9. Nge2 {[%emt 0:03:41]} Re8 {[%emt 0:00:27]} 10. Qc2 {[%emt 0:01:17]} Nbd7 {[%emt 0:00:47]} 11. O-O-O {[%emt 0:03:28]} b5 {[%emt 0:04:34]} 12. Kb1 {[%emt 0:04:49]} Nb6 {[%emt 0:07:43]} 13. Rhe1 {[%emt 0:05:22]} Bd7 {[%emt 0:03:51]} 14. Nc1 {[%emt 0:10:29]} b4 {[%emt 0:16:59]} 15. N3e2 {[%emt 0:02:05]} Ne4 {[%emt 0:00:30]} 16. Bxe7 {[%emt 0:00:20]} Qxe7 {[%emt 0:00:27]} 17. Ng3 {[%emt 0:25:37]} a5 {[%emt 0:13:54]} 18. f3 {[%emt 0:08:48]} Nxg3 {[%emt 0:11:12]} 19. hxg3 {[%emt 0:00:02]} a4 {[%emt 0:00:12]} 20. Qc5 {[%emt 0:01:21]} Rab8 {[%emt 0:04:32]} 21. e4 {[%emt 0:02:15]} Qg5 {[%emt 0:04:24]} 22. Qd6 {[%emt 0:05:09]} Be6 {[%emt 0:05:36]} 23. Re2 {[%emt 0:10:31]} dxe4 {[%emt 0:03:42]} 24. fxe4 {[%emt 0:00:20]} Bg4 {[%emt 0:00:47]} 25. Qxb4 {[%emt 0:01:56]} Nd5 {[%emt 0:02:47]} 26. Qc5 {[%emt 0:01:46]} Nb4 {[%emt 0:01:42]} 27. Qxg5 {[%emt 0:02:11]} hxg5 {[%emt 0:00:07]} 28. e5 {[%emt 0:00:51]} Rbd8 {[%emt 0:04:00]} 29. Bc4 {[%emt 0:03:21]} Bxe2 {[%emt 0:01:40]} 30. Nxe2 {[%emt 0:01:56]} Nd5 {[%emt 0:02:51]} 31. Bxd5 {[%emt 0:00:50]} Rxd5 {[%emt 0:00:17]} 32. Nc3 {[%emt 0:00:08]} Ra5 {[%emt 0:01:08]} 33. Ne4 {[%emt 0:00:08]} f6 {[%emt 0:01:05]} 34. Nd6 {[%emt 0:00:48]} Re6 {[%emt 0:00:50]} 35. Nc4 {[%emt 0:01:03]} Rd5 {[%emt 0:02:52]} 36. Nb6 {[%emt 0:00:33]} Rd8 {[%emt 0:01:08]} 37. exf6 {[%emt 0:00:53]} gxf6 {[%emt 0:00:06]} 38. Nxa4 {[%emt 0:00:05]} Re2 {[%emt 0:01:08]} 39. Nc3 {[%emt 0:00:37]} Rxg2 {[%emt 0:00:27]} 40. Rd3 {[%emt 0:00:39]} Rb8 {[%emt 0:02:15]} 41. Nd1 {[%emt 0:02:43]} Kf7 {[%emt 0:02:56]} 42. a3 {[%emt 0:00:05]} Ke6 {[%emt 0:01:47]} 43. Ka2 {[%emt 0:01:32]} f5 {[%emt 0:04:11]} 44. a4 {[%emt 0:00:12]} f4 {[%emt 0:01:02]} 45. gxf4 {[%emt 0:00:04]} gxf4 {[%emt 0:00:06]} 46. a5 {[%emt 0:00:12]} Rg3 {[%emt 0:08:07]} 47. Rd2 {[%emt 0:00:11]} Rg5 {[%emt 0:01:03]} 48. Re2+ {[%emt 0:02:05]} Kd6 {[%emt 0:00:59]} 49. a6 {[%emt 0:01:31]} Ra5+ {[%emt 0:00:36]} 50. Kb1 {[%emt 0:00:00]} Rxa6 {[%emt 0:00:36]} 51. Nc3 {[%emt 0:00:14]} Rf8 {[%emt 0:04:20]} 52. Ne4+ {[%emt 0:00:14]} Kd5 {[%emt 0:00:55]} 53. Nc5 {[%emt 0:00:07]} f3 {[%emt 0:01:24]} 54. Re7 {[%emt 0:00:13]} f2 {[%emt 0:02:14]} 55. Rd7+ {[%emt 0:00:55]} Kc4 {[%emt 0:00:07]} 0-1

[Event "26th OIBM 2023"]
[Site "Gmund am Tegernsee"]
[Date "2023.10.31"]
[Round "4.8"]
[White "Reimann, Sebastian"]
[Black "Navarro Jahnke, Leo"]
[Result "1-0"]
[ECO "A29"]
[WhiteElo "2342"]
[BlackElo "1884"]
[Annotator "RC"]
[PlyCount "119"]
[EventDate "2023.10.04"]
[EventType "swiss"]
[EventCountry "GER"]
[SourceTitle "playchess.com"]
[Source "ChessBase"]
[SourceQuality "1"]
[TimeControl "40/5400+30:1800+30"]

1. c4 {[%emt 0:00:03]} e5 {[%emt 0:00:21]} 2. g3 {[%emt 0:00:17]} Nc6 {[%emt 0:01:59]} 3. Bg2 {[%emt 0:00:12]} Bc5 {[%emt 0:00:51]} 4. Nc3 {[%emt 0:02:04]} Nf6 {[%emt 0:07:47]} 5. d3 {[%emt 0:09:52]} O-O {[%emt 0:01:35]} 6. Nf3 {[%emt 0:00:15]} h6 {[%emt 0:07:03]} 7. O-O {[%emt 0:00:19]} d6 {[%emt 0:07:31]} 8. b3 {[%emt 0:14:53]} Be6 {[%emt 0:05:20]} 9. Bb2 {[%emt 0:01:31]} a6 {[%emt 0:02:02]} 10. a3 {[%emt 0:02:15]} Qd7 {[%emt 0:03:44]} 11. b4 {[%emt 0:01:21]} Ba7 {[%emt 0:00:18]} 12. Ne1 {[%emt 0:08:31]} Bh3 {[%emt 0:03:24]} 13. e3 {[%emt 0:07:53]} Bxg2 {[%emt 0:05:24]} 14. Kxg2 {[%emt 0:00:50]} Ne7 {[%emt 0:06:09]} 15. Qf3 {[%emt 0:01:16]} c6 {[%emt 0:04:00]} 16. Nc2 {[%emt 0:02:44]} Qf5 {[%emt 0:04:03]} 17. Qxf5 {[%emt 0:02:12]} Nxf5 {[%emt 0:00:07]} 18. Ne4 {[%emt 0:02:07]} Rad8 {[%emt 0:04:05]} 19. Nxf6+ {[%emt 0:00:20]} gxf6 {[%emt 0:00:02]} 20. e4 {[%emt 0:00:50]} Bd4 {[%emt 0:10:37]} 21. Ra2 {[%emt 0:05:58]} Bxb2 {[%emt 0:02:55]} 22. Rxb2 {[%emt 0:01:29]} Nd4 {[%emt 0:01:42]} 23. Nxd4 {[%emt 0:00:35]} exd4 {[%emt 0:01:20]} 24. c5 {[%emt 0:00:42]} d5 {[%emt 0:00:16]} 25. exd5 {[%emt 0:01:17]} Rxd5 {[%emt 0:00:08]} 26. Re1 {[%emt 0:01:02]} Re5 {[%emt 0:00:40]} 27. Rbe2 {[%emt 0:09:53]} Rfe8 {[%emt 0:00:54]} 28. Rxe5 {[%emt 0:01:14]} fxe5 {[%emt 0:00:41]} 29. f4 {[%emt 0:00:19]} f6 {[%emt 0:00:10]} 30. Kf3 {[%emt 0:00:06]} Kf7 {[%emt 0:00:31]} 31. fxe5 {[%emt 0:00:08]} fxe5 {[%emt 0:00:04]} 32. Ke4 {[%emt 0:00:11]} Ke6 {[%emt 0:00:57]} 33. Rf1 {[%emt 0:03:56]} Rg8 {[%emt 0:03:37]} 34. Rf2 {[%emt 0:00:08]} Rg4+ {[%emt 0:00:32]} 35. Kf3 {[%emt 0:00:06]} Rg7 {[%emt 0:00:51]} 36. g4 {[%emt 0:01:18]} Rg6 {[%emt 0:03:09]} 37. h3 {[%emt 0:02:13]} h5 {[%emt 0:09:20]} 38. gxh5 {[%emt 0:03:34]} Rg5 {[%emt 0:00:42]} 39. h4 {[%emt 0:02:39]} Rxh5 {[%emt 0:01:14]} 40. Kg4 {[%emt 0:00:06]} Rh8 {[%emt 0:00:53]} 41. h5 {[%emt 0:30:13]} Rg8+ {[%emt 0:33:31]} 42. Kh4 {[%emt 0:00:23]} Rg1 {[%emt 0:00:16]} 43. h6 {[%emt 0:00:25]} Rh1+ {[%emt 0:00:00]} 44. Kg5 {[%emt 0:00:00]} Rh3 {[%emt 0:00:00]} 45. Rf6+ {[%emt 0:00:00]} Ke7 {[%emt 0:00:00]} 46. Rg6 {[%emt 0:00:00]} Kf7 {[%emt 0:00:00]} 47. Rg7+ {[%emt 0:00:00]} Kf8 {[%emt 0:00:00]} 48. Rxb7 {[%emt 0:00:00]} Rxd3 {[%emt 0:00:00]} 49. h7 {[%emt 0:00:00]} Rh3 {[%emt 0:00:00]} 50. Kf6 {[%emt 0:00:00]} Rh6+ {[%emt 0:00:00]} 51. Kxe5 {[%emt 0:00:00]} d3 {[%emt 0:00:00]} 52. Rb8+ {[%emt 0:00:00]} Kg7 {[%emt 0:00:00]} 53. Rd8 {[%emt 0:00:00]} Rh5+ {[%emt 0:00:00]} 54. Ke4 {[%emt 0:00:00]} Kxh7 {[%emt 0:00:00]} 55. Rxd3 {[%emt 0:00:00]} a5 {[%emt 0:00:00]} 56. Rd7+ {[%emt 0:00:00]} Kg6 {[%emt 0:00:00]} 57. Kd4 {[%emt 0:00:00]} Rh4+ {[%emt 0:00:00]} 58. Kc3 {[%emt 0:00:00]} axb4+ {[%emt 0:00:00]} 59. axb4 {[%emt 0:00:00]} Rh3+ {[%emt 0:00:00]} 60. Rd3 {[%emt 0:00:00]} 1-0

[Event "26th OIBM 2023"]
[Site "Gmund am Tegernsee"]
[Date "2023.10.31"]
[Round "4.9"]
[White "Nguyen, Alex Dac-Vuong"]
[Black "Bilandzic, Ante"]
[Result "1-0"]
[ECO "B14"]
[WhiteElo "2333"]
[BlackElo "1840"]
[Annotator "RC"]
[PlyCount "43"]
[EventDate "2023.10.04"]
[EventType "swiss"]
[EventCountry "GER"]
[SourceTitle "playchess.com"]
[Source "ChessBase"]
[SourceQuality "1"]
[TimeControl "40/5400+30:1800+30"]

1. e4 {[%emt 0:00:04]} c6 {[%emt 0:00:03]} 2. d4 {[%emt 0:00:05]} d5 {[%emt 0:00:01]} 3. exd5 {[%emt 0:00:08]} cxd5 {[%emt 0:00:02]} 4. c4 {[%emt 0:00:10]} Nf6 {[%emt 0:00:03]} 5. Nc3 {[%emt 0:00:05]} e6 {[%emt 0:00:02]} 6. Nf3 {[%emt 0:00:07]} Nc6 {[%emt 0:00:10]} 7. Bg5 {[%emt 0:00:14]} Be7 {[%emt 0:02:03]} 8. c5 {[%emt 0:00:21]} O-O {[%emt 0:02:23]} 9. Bb5 {[%emt 0:01:16]} Nd7 {[%emt 0:07:39]} 10. Bxe7 {[%emt 0:00:37]} Qxe7 {[%emt 0:02:18]} 11. O-O {[%emt 0:01:18]} a6 {[%emt 0:00:24]} 12. Qa4 {[%emt 0:09:00]} Ndb8 {[%emt 0:06:21]} 13. Rfe1 {[%emt 0:07:33]} Qc7 {[%emt 0:00:13]} 14. Bd3 {[%emt 0:05:36]} Bd7 {[%emt 0:07:40]} 15. Qc2 {[%emt 0:04:01]} f5 {[%emt 0:00:08]} 16. a3 {[%emt 0:00:40]} Rf6 {[%emt 0:00:01]} 17. Na4 {[%emt 0:06:44]} Be8 {[%emt 0:05:24]} 18. Nb6 {[%emt 0:00:45]} Ra7 {[%emt 0:00:00]} 19. Nxd5 {[%emt 0:01:26]} exd5 {[%emt 0:00:05]} 20. Rxe8+ {[%emt 0:00:05]} Kf7 {[%emt 0:01:22]} 21. Rae1 {[%emt 0:00:45]} Qf4 {[%emt 0:01:47]} 22. Qb3 {[%emt 0:01:02]} 1-0

[Event "26th OIBM 2023"]
[Site "Gmund am Tegernsee"]
[Date "2023.10.31"]
[Round "4.10"]
[White "Mastrovasilis, Dimitrios"]
[Black "Kulon, Klaudia"]
[Result "1-0"]
[ECO "B30"]
[WhiteElo "2573"]
[BlackElo "2319"]
[Annotator "TA"]
[PlyCount "87"]
[EventDate "2023.10.04"]
[EventType "swiss"]
[EventCountry "GER"]
[SourceTitle "playchess.com"]
[Source "ChessBase"]
[SourceQuality "1"]
[TimeControl "40/5400+30:1800+30"]

{[%evp 9,87,18,18,16,22,24,20,22,21,23,23,22,21,30,41,38,44,46,54,40,47,17,43,45,59,48,49,50,62,62,95,89,86,91,152,154,152,154,143,157,152,141,200,190,200,195,208,204,207,211,204,204,202,0,195,0,186,181,220,220,220,220,395,220,220,220,387,356,337,316,12829,12829,6201,5383,29992,29993,29996,241,29997,29998]} 1. e4 {[%emt 0:06:04]} c5 {[%emt 0:00:06]} 2. Nf3 {[%emt 0:00:15]} Nc6 {[%emt 0:00:05]} 3. Bb5 {[%emt 0:00:18]} e5 {[%emt 0:00:09]} 4. O-O {[%emt 0:01:13]} Bd6 {[%emt 0:00:06]} 5. a3 {[%emt 0:02:40]} Nf6 {[%emt 0:02:04]} 6. d3 {[%emt 0:01:34] B30: Sicilian: 2...Nc6 3 Bb5, lines without ...g6.} a6 {[%emt 0:01:35]} 7. Bc4 {[%emt 0:01:26] [#]} O-O $146 {[%emt 0:02:36]} ({Predecessor:} 7... b5 8. Ba2 h6 9. Nc3 O-O 10. Nh4 Nd4 11. Ng6 Re8 12. f4 exf4 13. Nxf4 Ne6 {1-0 Vlachos,A (2443)-Msellek,I (2353) Guimaraes op 2021 (7)}) 8. Nc3 {[%emt 0:02:14] The position is equal.} Be7 {[%emt 0:00:52]} 9. Nd5 {[%emt 0:24:35]} Nxd5 {[%emt 0:08:00]} 10. Bxd5 {[%emt 0:02:36]} d6 {[%emt 0:00:53]} 11. c3 {[%emt 0:01:42]} Be6 {[%emt 0:04:53]} 12. b4 {[%emt 0:02:34]} cxb4 {[%emt 0:04:21]} 13. Bxe6 {[%emt 0:00:36]} fxe6 {[%emt 0:00:06]} 14. axb4 {[%emt 0:00:17]} d5 {[%emt 0:05:09]} 15. Bb2 {[%emt 0:09:51]} d4 {[%emt 0:08:37]} 16. cxd4 {[%emt 0:02:06]} exd4 {[%emt 0:00:11] [#]} 17. b5 $1 {[%emt 0:03:12]} axb5 {[%emt 0:00:06]} 18. Rxa8 {[%emt 0:00:57]} Qxa8 {[%emt 0:00:02]} 19. Qb3 {[%emt 0:00:28]} (19. Bxd4 $2 {loses.} Rxf3 20. Bxg7 Rf7 $19) 19... Kh8 {[%emt 0:10:48]} 20. Nxd4 {[%emt 0:13:33]} ({Worse is} 20. Bxd4 Rxf3 21. Bxg7+ Kxg7 $17) 20... Nxd4 {[%emt 0:04:21]} 21. Bxd4 {[%emt 0:00:07]} Qa6 {[%emt 0:02:28]} (21... Qd8 $142 22. Qxe6 Qxd4 23. Qxe7 Kg8) 22. Qb2 $16 {[%emt 0:01:13]} Bf6 {[%emt 0:01:08] [#]} 23. Bxf6 $1 {[%emt 0:01:36]} gxf6 {[%emt 0:00:34][%mdl 4096] Endgame KQR-KQR} 24. Rb1 {[%emt 0:02:25]} Rf7 {[%emt 0:01:55]} 25. Qxb5 {[%emt 0:01:56] White is more active.} Qd6 {[%emt 0:00:08]} (25... Qxb5 $16 26. Rxb5 Rd7) 26. g3 $18 {[%emt 0:01:31]} Kg7 {[%emt 0:03:39]} 27. Kg2 {[%emt 0:01:56]} Rd7 {[%emt 0:03:11]} 28. Rb3 {[%emt 0:00:57]} e5 {[%emt 0:01:29]} 29. h4 {[%emt 0:00:30]} Qe6 {[%emt 0:02:11]} 30. Rc3 {[%emt 0:02:42]} Qd6 {[%emt 0:00:46]} 31. Rb3 {[%emt 0:00:12]} Qe6 $1 {[%emt 0:00:19]} 32. Rc3 {[%emt 0:00:54]} Qd6 {[%emt 0:00:08]} 33. Qa4 {[%emt 0:02:53]} Rf7 {[%emt 0:09:27]} 34. Qd1 {[%emt 0:02:57]} Qe6 {[%emt 0:01:36]} 35. Rb3 {[%emt 0:01:47]} Rd7 $2 {[%emt 0:02:52]} (35... Qc6 36. Qg4+ Kf8) 36. Rb5 {[%emt 0:01:50]} (36. Rb6 $142 Rd6 37. Rxb7+ Rd7 38. Rb6) 36... Kf7 {[%emt 0:06:23]} 37. Qb1 {[%emt 0:00:44]} Qa6 {[%emt 0:00:47]} (37... Qe7 38. Rb6 Kg7) 38. Qb3+ {[%emt 0:01:11]} Kg7 {[%emt 0:00:02]} 39. h5 {[%emt 0:01:29][%cal Bh4h5,Bh5h6][%mdl 32]} Rf7 $2 {[%emt 0:05:49]} (39... h6 40. g4 Kh7) 40. Rb6 {[%emt 0:01:52]} Qa8 {[%emt 0:00:03] [#]} 41. h6+ $1 {[%emt 0:31:13][%mdl 512]} Kg6 {[%emt 0:30:42]} (41... Kf8 42. Qb4+) 42. Qe6 {[%emt 0:00:40]} Qd8 {[%emt 0:00:15]} 43. Qg4+ {[%emt 0:00:00]} Kxh6 {[%emt 0:00:00]} 44. Rb1 {[%emt 0:00:00] Weighted Error Value: White=0.17 (very precise) /Black=0.32} 1-0

[Event "26th OIBM 2023"]
[Site "Gmund am Tegernsee"]
[Date "2023.10.31"]
[Round "4.11"]
[White "Lavrencic, Matic"]
[Black "Van Foreest, Lucas"]
[Result "1/2-1/2"]
[ECO "B15"]
[WhiteElo "2319"]
[BlackElo "2540"]
[Annotator "TA"]
[PlyCount "48"]
[EventDate "2023.10.04"]
[EventType "swiss"]
[EventCountry "GER"]
[SourceTitle "playchess.com"]
[Source "ChessBase"]
[SourceQuality "1"]
[TimeControl "40/5400+30:1800+30"]

{[%evp 9,48,18,30,22,35,20,25,28,20,20,18,20,18,24,21,20,28,23,28,28,30,21,24,22,24,22,37,29,29,22,22,19,29,18,18,18,40,14,29,29,29]} 1. e4 {[%emt 0:00:19]} c6 {[%emt 0:00:28]} 2. d4 {[%emt 0:00:55]} d5 {[%emt 0:00:44]} 3. Nc3 {[%emt 0:00:08]} dxe4 {[%emt 0:00:39]} 4. Nxe4 {[%emt 0:00:35]} Nf6 {[%emt 0:00:08]} 5. Qd3 {[%emt 0:00:05]} Nxe4 {[%emt 0:05:14]} 6. Qxe4 {[%emt 0:00:20] B15: Caro-Kann: 3 Nc3: 3...g6 and 3...dxe4 4 Nxe4 Nf6 5 Nxf6+ exf6.} Nd7 {[%emt 0:00:53]} 7. Nf3 {[%emt 0:01:11]} Nf6 {[%emt 0:01:28]} 8. Qf4 {[%emt 0:02:23]} Qa5+ {[%emt 0:02:25]} 9. Bd2 {[%emt 0:02:14]} Qf5 {[%emt 0:01:01]} 10. Bd3 {[%emt 0:00:28]} Qxf4 {[%emt 0:00:08]} 11. Bxf4 {[%emt 0:00:05]} Bg4 {[%emt 0:07:37]} 12. Ne5 {[%emt 0:00:40]} e6 {[%emt 0:03:06][%cal Of6d5]} 13. Nxg4 {[%emt 0:05:32]} Nxg4 {[%emt 0:00:07]} 14. c3 {[%emt 0:00:32] [#]} O-O-O $146 {[%emt 0:01:11]} ({Predecessor:} 14... Nf6 15. a4 O-O-O 16. O-O-O Bd6 17. Bd2 e5 18. dxe5 Bxe5 19. Be3 a6 20. Bb6 Bc7 {1-0 Oparin,G (2683)-Lenderman,A (2535) Chess.com Rapid Wk25 Swiss 2022 (6)}) 15. Be2 {[%emt 0:04:25] A strong pair of Bishops.} Nf6 {[%emt 0:00:49]} 16. Bf3 {[%emt 0:07:38]} Bd6 {[%emt 0:02:07]} 17. Bg5 {[%emt 0:01:11]} Be7 {[%emt 0:02:40]} 18. O-O-O {[%emt 0:12:00]} Nd5 {[%emt 0:00:11]} 19. Bd2 {[%emt 0:00:29]} h5 {[%emt 0:00:07]} 20. h4 {[%emt 0:01:11]} g6 {[%emt 0:00:23]} 21. g3 {[%emt 0:00:47]} Bf6 {[%emt 0:02:58]} 22. Kc2 {[%emt 0:01:55]} Bg7 {[%emt 0:00:21]} 23. Rhe1 {[%emt 0:05:12]} Rd7 {[%emt 0:03:21]} 24. Bg5 {[%emt 0:01:11]} Bh6 {[%emt 0:05:47] Weighted Error Value: White=0.05 (flawless) /Black=0.06 (flawless)} 1/2-1/2

[Event "26th OIBM 2023"]
[Site "Gmund am Tegernsee"]
[Date "2023.10.31"]
[Round "4.12"]
[White "Forchert, Martin"]
[Black "Kulaots, Kaido"]
[Result "0-1"]
[ECO "B40"]
[WhiteElo "2317"]
[BlackElo "2508"]
[Annotator "RC"]
[PlyCount "118"]
[EventDate "2023.10.04"]
[EventType "swiss"]
[EventCountry "GER"]
[SourceTitle "playchess.com"]
[Source "ChessBase"]
[SourceQuality "1"]
[TimeControl "40/5400+30:1800+30"]

1. e4 {[%emt 0:00:03]} c5 {[%emt 0:00:06]} 2. Nf3 {[%emt 0:00:06]} e6 {[%emt 0:00:06]} 3. g3 {[%emt 0:00:14]} Nc6 {[%emt 0:02:11]} 4. Bg2 {[%emt 0:00:07]} Nf6 {[%emt 0:00:12]} 5. Qe2 {[%emt 0:00:20]} e5 {[%emt 0:02:22]} 6. O-O {[%emt 0:02:01]} Be7 {[%emt 0:00:45]} 7. Nc3 {[%emt 0:01:24]} d6 {[%emt 0:01:47]} 8. Nd5 {[%emt 0:01:27]} O-O {[%emt 0:03:08]} 9. c3 {[%emt 0:00:18]} Nxd5 {[%emt 0:04:26]} 10. exd5 {[%emt 0:00:08]} Nb8 {[%emt 0:00:05]} 11. d4 {[%emt 0:08:19]} exd4 {[%emt 0:00:17]} 12. cxd4 {[%emt 0:00:05]} Na6 {[%emt 0:01:14]} 13. dxc5 {[%emt 0:04:34]} Nxc5 {[%emt 0:00:23]} 14. Nd4 {[%emt 0:06:08]} Bf6 {[%emt 0:01:42]} 15. Be3 {[%emt 0:02:55]} Bd7 {[%emt 0:01:46]} 16. Rad1 {[%emt 0:09:26]} a5 {[%emt 0:05:58]} 17. Rfe1 {[%emt 0:02:11]} a4 {[%emt 0:01:51]} 18. Qd2 {[%emt 0:10:54]} Re8 {[%emt 0:08:43]} 19. h3 {[%emt 0:05:29]} h6 {[%emt 0:11:06]} 20. Kh2 {[%emt 0:04:01]} Qb6 {[%emt 0:10:24]} 21. Qc2 {[%emt 0:16:29]} Rac8 {[%emt 0:15:54]} 22. Qd2 {[%emt 0:05:41]} Ra8 {[%emt 0:00:39]} 23. Rc1 {[%emt 0:05:44]} Re7 {[%emt 0:01:44]} 24. b4 {[%emt 0:05:22]} axb3 {[%emt 0:02:44]} 25. Nxb3 {[%emt 0:00:05]} Nxb3 {[%emt 0:00:56]} 26. axb3 {[%emt 0:00:14]} Qxb3 {[%emt 0:00:11]} 27. Rb1 {[%emt 0:00:52]} Qa3 {[%emt 0:01:33]} 28. Rec1 {[%emt 0:03:48]} Bf5 {[%emt 0:13:48]} 29. Rb6 {[%emt 0:00:48]} Ra6 {[%emt 0:00:30]} 30. Rb4 {[%emt 0:01:33]} Qa2 {[%emt 0:04:04]} 31. Qxa2 {[%emt 0:02:08]} Rxa2 {[%emt 0:00:05]} 32. Kg1 {[%emt 0:00:08]} Rb2 {[%emt 0:01:19]} 33. Ra4 {[%emt 0:00:53]} b5 {[%emt 0:01:44]} 34. Ra6 {[%emt 0:00:28]} Be5 {[%emt 0:00:31]} 35. g4 {[%emt 0:00:40]} Bd3 {[%emt 0:00:16]} 36. Rb6 {[%emt 0:01:34]} b4 {[%emt 0:02:30]} 37. Bf1 {[%emt 0:00:26]} Bxf1 {[%emt 0:00:31]} 38. Kxf1 {[%emt 0:00:04]} b3 {[%emt 0:00:53]} 39. Kg2 {[%emt 0:00:51]} Kh7 {[%emt 0:00:25]} 40. Kf3 {[%emt 0:00:35]} Rd7 {[%emt 0:01:05]} 41. Rcc6 {[%emt 0:31:12]} Rb1 {[%emt 0:06:14]} 42. Rc1 {[%emt 0:00:00]} Rxc1 {[%emt 0:01:00]} 43. Bxc1 {[%emt 0:00:00]} Rc7 {[%emt 0:05:43]} 44. Ba3 {[%emt 0:00:00]} Rc3+ {[%emt 0:00:37]} 45. Ke4 {[%emt 0:00:00]} Rc4+ {[%emt 0:00:21]} 46. Ke3 {[%emt 0:00:00]} Bd4+ {[%emt 0:03:35]} 47. Kd3 {[%emt 0:00:00]} Bxb6 {[%emt 0:00:12]} 48. Kxc4 {[%emt 0:00:00]} Bc5 {[%emt 0:03:26]} 49. Bc1 {[%emt 0:00:00]} Bxf2 {[%emt 0:00:17]} 50. Kxb3 {[%emt 0:00:00]} g5 {[%emt 0:00:44]} 51. Kc4 {[%emt 0:00:00]} Kg6 {[%emt 0:00:26]} 52. Kd3 {[%emt 0:00:00]} f5 {[%emt 0:00:20]} 53. Ke2 {[%emt 0:00:00]} Bd4 {[%emt 0:00:20]} 54. Kf3 {[%emt 0:00:00]} h5 {[%emt 0:04:28]} 55. Bd2 {[%emt 0:00:00]} Be5 {[%emt 0:00:51]} 56. Ba5 {[%emt 0:00:00]} fxg4+ {[%emt 0:00:36]} 57. hxg4 {[%emt 0:00:00]} h4 {[%emt 0:00:09]} 58. Kg2 {[%emt 0:00:00]} Bf4 {[%emt 0:00:06]} 59. Bc3 {[%emt 0:00:00]} Kf7 {[%emt 0:00:07]} 0-1

[Event "26th OIBM 2023"]
[Site "Gmund am Tegernsee"]
[Date "2023.10.31"]
[Round "4.13"]
[White "Vetoshko, Volodymyr"]
[Black "Baerwinkel, Tobias"]
[Result "1-0"]
[ECO "B23"]
[WhiteElo "2499"]
[BlackElo "2315"]
[Annotator "RC"]
[PlyCount "59"]
[EventDate "2023.10.04"]
[EventType "swiss"]
[EventCountry "GER"]
[SourceTitle "playchess.com"]
[Source "ChessBase"]
[SourceQuality "1"]
[TimeControl "40/5400+30:1800+30"]

1. e4 {[%emt 0:00:03]} c5 {[%emt 0:00:22]} 2. Nc3 {[%emt 0:00:06]} d6 {[%emt 0:00:46]} 3. d4 {[%emt 0:00:09]} cxd4 {[%emt 0:00:33]} 4. Qxd4 {[%emt 0:00:06]} Nc6 {[%emt 0:00:15]} 5. Qd2 {[%emt 0:00:16]} g6 {[%emt 0:00:26]} 6. b3 {[%emt 0:00:13]} Bh6 {[%emt 0:00:30]} 7. f4 {[%emt 0:00:07]} Nf6 {[%emt 0:00:50]} 8. Bb2 {[%emt 0:00:39]} O-O {[%emt 0:01:07]} 9. O-O-O {[%emt 0:00:41]} e5 {[%emt 0:00:22]} 10. g3 {[%emt 0:00:22]} Re8 {[%emt 0:01:17]} 11. Kb1 {[%emt 0:00:48]} Nd4 {[%emt 0:01:25]} 12. Qf2 {[%emt 0:03:39]} Bg4 {[%emt 0:05:51]} 13. Re1 {[%emt 0:00:52]} Rc8 {[%emt 0:04:45]} 14. h3 {[%emt 0:00:32]} Bd7 {[%emt 0:01:45]} 15. Nf3 {[%emt 0:07:08]} Bg7 {[%emt 0:05:41]} 16. fxe5 {[%emt 0:20:46]} Nxf3 {[%emt 0:07:32]} 17. Qxf3 {[%emt 0:01:14]} Rxe5 {[%emt 0:09:10]} 18. Bd3 {[%emt 0:05:52]} Qa5 {[%emt 0:04:21]} 19. Ne2 {[%emt 0:02:52]} d5 {[%emt 0:06:30]} 20. Bxe5 {[%emt 0:23:11]} dxe4 {[%emt 0:07:46]} 21. Qf4 {[%emt 0:01:44]} Nh5 {[%emt 0:22:10]} 22. Qxe4 {[%emt 0:01:16]} Bxe5 {[%emt 0:00:05]} 23. Qxb7 {[%emt 0:07:40]} Rxc2 {[%emt 0:03:39]} 24. Kxc2 {[%emt 0:02:39]} Qxa2+ {[%emt 0:00:04]} 25. Kd1 {[%emt 0:00:14]} Qa1+ {[%emt 0:05:31]} 26. Nc1 {[%emt 0:00:57]} Bb2 {[%emt 0:00:14]} 27. Qxd7 {[%emt 0:04:57]} Qxc1+ {[%emt 0:00:06]} 28. Ke2 {[%emt 0:00:03]} Nxg3+ {[%emt 0:00:17]} 29. Kf3 {[%emt 0:00:06]} Qg5 {[%emt 0:04:16]} 30. h4 {[%emt 0:00:16]} 1-0